bitfinex-derivatives/quotes_SOLF0:USTF0_20240910
["timestamp","ask_amount","ask_price","bid_price","bid_amount"]
[1725943247284,177.31838871,132.88,132.82,9.26]
[1725943247582,177.31838871,132.88,132.83,9.26]
[1725943247776,3.3867,132.87,132.83,9.26]
[1725943248171,3.3867,132.87,132.84,3.3873]
[1725943248580,158.09478871,132.88,132.84,3.3873]
[1725943248882,9.26,132.9,132.85,12.647]
[1725943249872,9.26,132.9,132.86,3.3868]
[1725943250282,9.26,132.9,132.85,9.26]
[1725943251081,3.3865,132.88,132.85,9.26]
[1725943251279,31.87,132.9,132.85,9.26]
[1725943251579,3.3865,132.88,132.85,9.26]
[1725943254582,3.3865,132.88,132.84,3.3871]
[1725943254785,3.3866,132.87,132.84,3.3871]
[1725943255479,3.3866,132.87,132.83,9.26]
[1725943255780,3.3869,132.86,132.83,12.6475]
[1725943255986,9.26,132.88,132.81,9.26]
[1725943256684,3.387,132.86,132.82,3.3878]
[1725943256983,9.26,132.88,132.82,3.3878]
[1725943258586,3.387,132.86,132.83,3.3876]
[1725943260483,3.387,132.86,132.82,9.26]
[1725943260484,3.387,132.86,132.82,12.6477]
[1725943261590,3.387,132.86,132.83,3.3875]
[1725943265487,3.3871,132.85,132.82,12.6478]
[1725943265687,31.87,132.89,132.84,9.26]
[1725943265893,3.3867,132.87,132.84,9.26]
[1725943267487,3.3867,132.87,132.84,12.6472]
[1725943268500,3.3868,132.86,132.84,12.6472]
[1725943268700,3.3868,132.86,132.84,9.26]
[1725943271200,3.3868,132.86,132.84,12.6473]
[1725943278298,3.3868,132.86,132.84,9.26]
[1725943279199,3.3866,132.87,132.84,12.6473]
[1725943279909,31.87,132.9,132.84,12.6473]
[1725943279910,3.3869,132.86,132.84,12.6473]
[1725943280106,3.3869,132.86,132.84,9.26]
[1725943282511,9.26,132.9,132.85,3.3871]
[1725943283403,3.3868,132.86,132.8,4.1212]
[1725943283605,31.87,132.9,132.8,4.1212]
[1725943283807,31.87,132.9,132.84,9.26]
[1725943284112,3.3867,132.87,132.85,9.26]
[1725943284312,35.57763669,132.91,132.86,9.26]
[1725943284514,3.3864,132.88,132.86,9.26]
[1725943285013,3.3864,132.88,132.85,9.26]
[1725943285216,3.3864,132.88,132.85,12.647]
[1725943285809,3.3862,132.89,132.86,3.3867]
[1725943286009,22.61,132.94,132.88,9.26]
[1725943286215,154.61876978,132.95,132.88,9.26]
[1725943286216,177.22876978,132.95,132.88,9.26]
[1725943286416,177.22876978,132.95,132.89,3.3859]
[1725943286417,3.3854,132.92,132.89,3.3859]
[1725943286716,3.3854,132.92,132.88,12.9309431]
[1725943286911,3.3854,132.92,132.88,9.26]
[1725943287313,3.3854,132.92,132.89,3.386]
[1725943288413,186.48876978,132.95,132.88,12.6461]
[1725943288616,9.26,132.93,132.88,12.6461]
[1725943288815,31.87,132.93,132.87,1.283]
[1725943289016,31.87,132.93,132.87,10.543]
[1725943289222,31.87,132.93,132.88,9.26]
[1725943289919,3.3857,132.91,132.88,12.6463]
[1725943291320,3.3857,132.91,132.88,3.3863]
[1725943291617,9.26,132.93,132.87,1.283]
[1725943291618,3.3858,132.9,132.87,4.6694]
[1725943291820,3.3858,132.9,132.87,13.9294]
[1725943295523,154.61876978,132.95,132.87,13.9294]
[1725943295524,22.61,132.94,132.87,13.9294]
[1725943295714,31.87,132.93,132.87,13.9294]
[1725943296119,3.3858,132.9,132.87,13.9294]
[1725943296324,163.87876978,132.95,132.88,12.6461]
[1725943296622,22.61,132.94,132.88,12.6461]
[1725943297122,22.61,132.94,132.89,3.386]
[1725943297322,22.61,132.94,132.88,9.26]
[1725943298323,3.3857,132.91,132.88,12.6462]
[1725943299921,35.61228278,132.91,132.86,1.3258]
[1725943300521,3.3863,132.89,132.86,1.3258]
[1725943300724,3.3863,132.89,132.86,4.7126]
[1725943301830,35.72032374,132.91,132.86,1.3258]
[1725943302132,154.61876978,132.95,132.87,9.26]
[1725943302325,10.40303169,132.94,132.87,13.9405]
[1725943302524,9.26,132.94,132.87,13.9405]
[1725943302933,31.87,132.94,132.87,13.9405]
[1725943303126,3.3858,132.9,132.87,13.9405]
[1725943303528,3.386,132.89,132.87,13.9405]
[1725943303831,3.386,132.89,132.87,10.5541]
[1725943304435,3.3859,132.9,132.87,13.9406]
[1725943305134,3.3857,132.91,132.88,3.3863]
[1725943305629,9.26,132.93,132.87,13.9404]
[1725943305938,9.26,132.93,132.87,10.5541]
[1725943306233,9.26,132.93,132.88,9.26]
[1725943306434,3.3855,132.92,132.88,12.6462]
[1725943307234,3.3855,132.91,132.88,12.6462]
[1725943308330,3.3853,132.92,132.88,9.26]
[1725943308925,3.3853,132.92,132.88,12.6462]
[1725943310037,3.3851,132.93,132.89,12.646]
[1725943310339,22.61,132.95,132.91,9.26]
[1725943310630,3.3849,132.94,132.91,9.26]
[1725943311336,3.3849,132.94,132.91,12.6455]
[1725943312827,3.3846,132.95,132.92,3.3852]
[1725943313028,35.62950319,132.99,132.92,9.26]
[1725943313228,22.61,132.99,132.93,9.26]
[1725943313429,22.61,132.99,132.93,12.99240496]
[1725943314241,22.61,133.02,132.96,9.26]
[1725943314424,31.87,133.02,132.95,9.26]
[1725943314631,22.61,133.0,132.95,9.26]
[1725943315030,3.3838,132.98,132.95,12.6444]
[1725943315231,22.61,133.0,132.95,12.6444]
[1725943315431,22.61,133.0,132.94,2.6825]
[1725943315626,22.61,133.0,132.94,11.9425]
[1725943315834,3.3839,132.98,132.94,15.327]
[1725943316940,3.3836,132.99,132.95,3.3845]
[1725943317234,9.26,133.02,132.95,9.26]
[1725943317442,1.14362679,133.01,132.97,3.3839]
[1725943317630,3.3832,133.01,132.97,3.3839]
[1725943317826,3.3832,133.01,132.97,12.6439]
[1725943318137,3.3832,133.01,132.98,3.3837]
[1725943318536,3.3833,133.0,132.97,12.6439]
[1725943319043,26.3342325,133.05,132.98,9.26]
[1725943319342,22.61,133.03,132.98,9.26]
[1725943320231,3.383,133.01,132.98,12.6436]
[1725943321230,3.3834,133.0,132.96,3.3841]
[1725943321834,9.26,133.03,132.97,9.26]
[1725943322038,31.87,133.03,132.97,9.26]
[1725943322435,3.3831,133.01,132.97,12.6438]
[1725943323532,3.3833,133.0,132.96,3.3842]
[1725943323836,3.3833,133.0,132.97,9.26]
[1725943325042,3.73081552,133.04,132.95,9.26]
[1725943325043,3.3835,132.99,132.95,9.26]
[1725943325434,9.26,133.0,132.94,3.9719]
[1725943325636,3.3839,132.98,132.94,13.2319]
[1725943325836,3.3839,132.98,132.94,2.6825]
[1725943325837,9.26,132.98,132.94,2.6825]
[1725943326049,3.3843,132.96,132.92,9.26]
[1725943326642,31.87,132.98,132.92,7.12372241]
[1725943326942,31.87,132.98,132.92,3.73862241]
[1725943327142,3.3845,132.96,132.92,3.73862241]
[1725943327746,3.3845,132.96,132.92,7.12372241]
[1725943327939,3.3845,132.95,132.91,9.26]
[1725943328136,3.3845,132.95,132.91,13.06633063]
[1725943328347,3.3845,132.95,132.91,16.45173063]
[1725943328749,3.3848,132.94,132.91,9.26]
[1725943329248,3.3848,132.94,132.9,9.26]
[1725943329641,3.3846,132.95,132.91,3.3854]
[1725943329944,3.3846,132.95,132.9,9.26]
[1725943330940,3.3846,132.95,132.91,9.26]
[1725943331346,3.3843,132.96,132.92,3.3853]
[1725943332845,3.3843,132.96,132.93,3.385]
[1725943333050,3.3841,132.97,132.93,12.645]
[1725943333242,31.84,132.98,132.92,10.6498]
[1725943333559,3.3844,132.96,132.92,14.035]
[1725943334043,3.3844,132.96,132.92,17.75094629]
[1725943334237,3.3844,132.96,132.88,1.3188]
[1725943334238,3.3848,132.94,132.88,1.3188]
[1725943334454,9.26,132.96,132.9,9.26]
[1725943334455,31.84,132.96,132.9,9.26]
[1725943334844,3.3849,132.94,132.9,12.6456]
[1725943338761,3.3851,132.93,132.9,12.6456]
[1725943339052,3.3851,132.93,132.9,9.26]
[1725943339243,3.3854,132.92,132.89,4.7757]
[1725943339441,3.3854,132.92,132.89,1.3898]
[1725943339652,31.84,132.92,132.88,1.3188]
[1725943339852,3.74981314,132.97,132.87,1.2762]
[1725943340154,9.26,132.95,132.88,3.3861]
[1725943340356,3.3855,132.92,132.89,9.26]
[1725943340859,3.3855,132.92,132.89,12.6458]
[1725943341758,31.84,132.95,132.89,9.26]
[1725943342257,31.84,132.95,132.89,3.3858]
[1725943342455,3.3853,132.93,132.89,3.3858]
[1725943344255,3.3853,132.93,132.89,4.6773]
[1725943344455,3.3853,132.93,132.9,3.3856]
[1725943345057,3.3849,132.94,132.91,3.3855]
[1725943346656,3.3849,132.94,132.91,12.6455]
[1725943347045,3.385,132.93,132.9,3.3857]
[1725943347444,31.84,132.95,132.89,10.5515]
[1725943349046,31.84,132.95,132.9,3.3857]
[1725943349047,3.3851,132.93,132.9,3.3857]
[1725943350754,3.3851,132.93,132.89,13.9374]
[1725943350958,3.3851,132.93,132.89,10.5515]
[1725943351155,3.3851,132.93,132.9,3.3856]
[1725943351662,3.3849,132.94,132.9,3.3856]
[1725943351863,31.84,132.95,132.9,3.3856]
[1725943352258,3.385,132.93,132.89,13.9374]
[1725943352457,3.385,132.93,132.89,10.5515]
[1725943352960,3.385,132.93,132.9,3.3857]
[1725943354565,31.84,132.94,132.89,1.2915]
[1725943354770,31.84,132.93,132.89,1.2915]
[1725943355067,3.3857,132.91,132.89,1.2915]
[1725943357263,3.3858,132.9,132.89,1.2915]
[1725943357458,31.84,132.91,132.87,2.5624]
[1725943358161,3.3863,132.89,132.87,2.5624]
[1725943360469,3.3859,132.9,132.87,2.5624]
[1725943361171,3.3859,132.9,132.87,5.9489]
[1725943362168,3.3857,132.91,132.88,3.3863]
[1725943362369,3.3857,132.91,132.88,12.6463]
[1725943362968,3.3855,132.92,132.89,3.386]
[1725943363173,3.3855,132.92,132.89,12.646]
[1725943363678,3.3855,132.92,132.9,3.3858]
[1725943367077,3.3851,132.93,132.9,3.3858]
[1725943367982,3.3854,132.92,132.89,12.6459]
[1725943371182,3.3854,132.92,132.89,3.3859]
[1725943372182,3.3857,132.91,132.88,3.3862]
[1725943373188,3.3858,132.9,132.87,5.9488]
[1725943373585,3.3861,132.89,132.87,2.5624]
[1725943373889,3.7797334,132.97,132.86,1.3262]
[1725943373890,22.58,132.91,132.86,1.3262]
[1725943374094,9.26,132.89,132.86,1.3262]
[1725943374277,3.3865,132.87,132.86,1.3262]
[1725943375088,3.3864,132.88,132.86,1.3262]
[1725943378088,31.84,132.9,132.86,8.43278034]
[1725943378291,31.84,132.9,132.86,4.7128]
[1725943378489,9.26,132.9,132.86,8.52049087]
[1725943378687,3.3862,132.89,132.86,8.52049087]
[1725943386194,3.3863,132.88,132.86,8.52049087]
[1725943386694,3.3862,132.89,132.86,8.52049087]
[1725943387487,3.3862,132.89,132.86,9.81819087]
[1725943388587,26.31240286,132.94,132.88,9.26]
[1725943388789,31.84,132.94,132.88,9.26]
[1725943389598,3.3854,132.92,132.89,3.3859]
[1725943390500,3.3847,132.95,132.91,9.26]
[1725943390691,22.58,132.98,132.91,9.26]
[1725943391007,3.3845,132.95,132.92,3.3851]
[1725943391196,31.84,132.96,132.91,9.26]
[1725943391798,3.3849,132.94,132.91,9.26]
[1725943393102,3.3849,132.94,132.91,12.6454]
[1725943393305,22.5667115,133.08,132.92,9.26]
[1725943393306,22.58,133.01,132.92,9.26]
[1725943393499,22.58,132.97,132.92,9.26]
[1725943393694,31.84,132.97,132.91,9.26]
[1725943393999,3.3848,132.94,132.91,9.26]
[1725943394506,3.3848,132.94,132.91,12.6454]
[1725943398699,9.26,132.95,132.92,3.3852]
[1725943398700,12.6446,132.95,132.92,3.3852]
[1725943399699,3.3848,132.94,132.92,3.3852]
[1725943401200,3.3846,132.95,132.92,3.3852]
[1725943401399,3.3846,132.95,132.93,3.7171717]
[1725943403997,3.3844,132.96,132.93,7.1020717]
[1725943404399,3.3844,132.96,132.93,3.3849]
[1725943406002,3.3844,132.96,132.93,7.05541422]
[1725943406704,3.3844,132.96,132.93,3.3849]
[1725943407205,3.3848,132.95,132.91,9.26]
[1725943407705,3.3848,132.95,132.92,3.385]
[1725943408106,3.3848,132.95,132.91,9.26]
[1725943408298,22.58,132.96,132.93,12.6449]
[1725943408299,3.3843,132.96,132.93,12.6449]
[1725943408495,3.3843,132.96,132.93,16.38050894]
[1725943409405,52.8223068,133.03,132.95,9.26]
[1725943409704,22.58,133.0,132.95,9.26]
[1725943410211,3.3839,132.98,132.95,3.3844]
[1725943413813,3.3839,132.98,132.93,3.73560894]
[1725943413814,22.58,132.97,132.93,3.73560894]
[1725943414009,31.84,132.97,132.91,9.26]
[1725943414407,3.3845,132.95,132.91,9.26]
[1725943415013,3.3845,132.95,132.92,3.3851]
[1725943416811,3.3848,132.94,132.87,1.3084]
[1725943417012,31.84,132.97,132.9,9.26]
[1725943417212,31.84,132.97,132.91,9.26]
[1725943417411,3.3844,132.96,132.91,9.26]
[1725943417617,3.3844,132.96,132.92,9.26]
[1725943417819,3.3843,132.96,132.93,7.22001949]
[1725943418122,9.26,132.98,132.93,7.22001949]
[1725943418413,3.3842,132.97,132.93,7.22001949]
[1725943419014,3.3842,132.97,132.94,9.26]
[1725943419922,3.3842,132.97,132.94,12.6448]
[1725943420517,22.58,133.03,132.94,9.26]
[1725943420725,3.384,132.98,132.95,12.6444]
[1725943422817,22.58,133.0,132.95,12.6444]
[1725943423022,22.58,133.0,132.96,3.3842]
[1725943423023,3.3837,132.99,132.96,3.3842]
[1725943423316,22.58,133.0,132.96,3.3842]
[1725943424027,3.3835,132.99,132.96,3.3842]
[1725943424325,22.58,133.0,132.95,12.6444]
[1725943424626,22.58,133.0,132.95,9.26]
[1725943424829,22.58,133.01,132.96,12.644]
[1725943425018,22.58,133.01,132.96,9.26]
[1725943425219,3.3834,133.0,132.96,9.26]
[1725943425419,22.58,133.01,132.97,3.3839]
[1725943425823,22.58,133.02,132.97,3.3839]
[1725943426622,3.3835,132.99,132.96,12.6442]
[1725943438643,3.3838,132.98,132.96,12.6442]
[1725943439541,3.3841,132.97,132.95,9.26]
[1725943440545,3.3839,132.98,132.95,12.6445]
[1725943440834,3.3839,132.98,132.95,9.26]
[1725943442138,3.3839,132.98,132.96,3.3842]
[1725943443131,22.58,133.01,132.95,9.26]
[1725943443132,3.384,132.97,132.95,9.26]
[1725943443738,3.3839,132.98,132.95,12.6444]
[1725943446946,22.58,133.01,132.95,9.26]
[1725943447837,3.3842,132.97,132.95,9.26]
[1725943448845,3.3839,132.98,132.95,12.6445]
[1725943449142,3.3839,132.98,132.95,9.26]
[1725943449344,3.3839,132.98,132.97,9.26]
[1725943452342,3.3839,132.98,132.95,3.3843]
[1725943452546,3.3839,132.98,132.96,9.26]
[1725943455043,3.384,132.97,132.96,9.26]
[1725943456149,3.3839,132.98,132.96,9.26]
[1725943458356,3.3839,132.98,132.96,12.6441]
[1725943466369,3.3836,132.99,132.96,12.6441]
[1725943468359,3.3838,132.98,132.96,12.6441]
[1725943469167,3.3838,132.98,132.96,9.26]
[1725943469468,3.384,132.97,132.96,9.26]
[1725943472972,3.3843,132.96,132.94,7.4442]
[1725943473266,22.58,132.97,132.9,3.3856]
[1725943473470,22.58,132.97,132.91,9.26]
[1725943474174,3.385,132.94,132.91,16.48493243]
[1725943479561,3.385,132.94,132.92,12.6453]
[1725943479766,3.3846,132.95,132.92,12.6453]
[1725943481065,3.3844,132.96,132.94,9.26]
[1725943481869,25.9641,132.97,132.94,12.6447]
[1725943482062,22.58,132.99,132.94,12.6447]
[1725943482468,3.3842,132.97,132.94,12.6447]
[1725943483074,3.3842,132.97,132.95,9.26]
[1725943485175,3.3853,132.92,132.91,3.83943243]
[1725943485373,22.58,132.94,132.89,13.3091]
[1725943485675,3.3854,132.92,132.89,13.3091]
[1725943485871,3.3854,132.92,132.89,17.06399238]
[1725943487177,22.58,132.94,132.89,2.6908]
[1725943487382,22.58,132.93,132.89,2.6908]
[1725943487880,3.3857,132.91,132.89,2.6908]
[1725943488174,22.58,132.93,132.89,2.6908]
[1725943488378,3.3858,132.9,132.89,2.6908]
[1725943488968,3.3856,132.91,132.89,2.6908]
[1725943489574,22.58,132.93,132.89,2.6908]
[1725943489575,3.3858,132.9,132.89,2.6908]
[1725943491082,22.58,132.95,132.89,2.6908]
[1725943491378,22.58,132.95,132.9,9.26]
[1725943491975,31.84,132.95,132.89,2.6908]
[1725943492183,31.84,132.95,132.89,11.9508]
[1725943492385,31.84,132.95,132.9,9.26]
[1725943492679,3.3854,132.92,132.9,9.26]
[1725943494583,3.3854,132.92,132.89,6.0768]
[1725943494885,3.3854,132.92,132.9,9.26]
[1725943498587,3.3856,132.91,132.89,11.9508]
[1725943499585,22.58,132.92,132.87,3.79439776]
[1725943499788,22.58,132.92,132.87,9.26]
[1725943499985,31.84,132.93,132.87,12.93473035]
[1725943500186,3.3857,132.91,132.87,12.93473035]
[1725943500484,3.3857,132.91,132.88,9.26]
[1725943500684,3.3857,132.91,132.88,12.6461]
[1725943500988,3.3857,132.91,132.88,15.3793]
[1725943504793,3.3859,132.9,132.88,11.9932]
[1725943506395,3.3857,132.91,132.88,15.3795]
[1725943506889,3.3857,132.91,132.89,9.26]
[1725943509295,3.3854,132.92,132.89,12.6459]
[1725943509491,22.58,132.94,132.9,9.26]
[1725943509996,3.3851,132.93,132.9,12.6456]
[1725943510384,3.3851,132.93,132.9,9.26]
[1725943510790,3.3849,132.94,132.91,3.3855]
[1725943510986,3.3849,132.94,132.92,9.26]
[1725943511296,22.58,132.96,132.92,9.26]
[1725943511487,3.3847,132.95,132.92,12.6452]
[1725943511689,3.3847,132.95,132.93,9.26]
[1725943512192,22.58,132.97,132.93,9.26]
[1725943512392,22.58,132.97,132.91,12.6455]
[1725943512589,22.58,132.95,132.9,9.26]
[1725943512791,3.3852,132.93,132.9,9.26]
[1725943513594,3.3852,132.93,132.9,12.6456]
[1725943513794,3.385,132.94,132.9,12.6456]
[1725943514185,3.385,132.94,132.9,9.26]
[1725943514391,3.385,132.94,132.91,3.3855]
[1725943515495,3.3846,132.95,132.92,3.3853]
[1725943515690,22.58,132.96,132.91,9.26]
[1725943516092,3.3848,132.94,132.91,12.6454]
[1725943516498,3.3848,132.94,132.91,9.26]
[1725943516896,3.3848,132.94,132.91,12.6455]
[1725943519600,3.3847,132.95,132.92,3.3851]
[1725943520196,3.3849,132.94,132.91,12.6454]
[1725943522902,3.3847,132.95,132.92,3.3853]
[1725943523099,3.3847,132.95,132.92,12.6453]
[1725943523400,3.3847,132.95,132.93,3.385]
[1725943525707,3.3847,132.95,132.92,12.6452]
[1725943527801,3.3844,132.96,132.93,3.3849]
[1725943528604,3.3844,132.96,132.94,9.26]
[1725943539115,3.3845,132.95,132.94,9.26]
[1725943544418,3.3848,132.94,132.92,12.6451]
[1725943544725,3.3848,132.94,132.92,9.26]
[1725943545617,3.385,132.93,132.92,9.26]
[1725943545817,3.385,132.93,132.91,9.26]
[1725943547625,3.385,132.94,132.91,12.6455]
[1725943547914,3.385,132.94,132.92,9.26]
[1725943548320,3.3847,132.95,132.92,12.6451]
[1725943549211,22.58,132.97,132.92,12.6451]
[1725943549424,3.3849,132.94,132.92,9.26]
[1725943550314,3.385,132.93,132.91,9.26]
[1725943550716,3.385,132.93,132.91,12.6455]
[1725943551213,22.58,132.96,132.91,12.6455]
[1725943551214,3.3849,132.94,132.91,12.6455]
[1725943551420,22.58,132.98,132.92,9.26]
[1725943551615,3.3845,132.96,132.92,9.26]
[1725943552113,22.58,132.98,132.92,12.6451]
[1725943552921,3.3845,132.96,132.92,12.6451]
[1725943553313,3.3845,132.96,132.94,9.26]
[1725943555520,22.58,132.98,132.95,9.26]
[1725943556623,22.58,132.98,132.94,12.98911335]
[1725943557215,3.3843,132.96,132.94,12.98911335]
[1725943557617,154.51675715,133.02,132.95,9.26]
[1725943557618,22.58,133.01,132.95,9.26]
[1725943557818,62.06566091,133.01,132.95,9.26]
[1725943558025,31.84,133.01,132.95,9.26]
[1725943558525,3.3839,132.98,132.95,9.26]
[1725943559129,22.58,133.01,132.96,9.26]
[1725943559325,154.51675715,133.02,133.0,9.26]
[1725943559326,177.09675715,133.02,133.0,9.26]
[1725943559523,22.58,133.04,133.0,9.26]
[1725943559841,3.3829,133.02,133.0,9.26]
[1725943560228,3.3825,133.03,133.0,9.26]
[1725943561237,22.58,133.05,133.01,9.26]
[1725943561827,3.3825,133.03,133.01,9.26]
[1725943563936,22.58,133.06,133.01,9.26]
[1725943563937,3.3822,133.04,133.01,9.26]
[1725943564635,3.382,133.05,133.01,12.643]
[1725943565547,3.382,133.05,133.03,9.26]
[1725943566243,3.3818,133.06,133.03,9.26]
[1725943566542,22.58,133.07,133.03,9.26]
[1725943566938,3.382,133.05,133.03,9.26]
[1725943567946,3.3818,133.06,133.03,9.26]
[1725943568344,22.58,133.08,133.04,9.26]
[1725943568552,3.3817,133.06,133.03,9.26]
[1725943570147,3.3817,133.06,133.04,9.26]
[1725943570342,3.3816,133.07,133.05,9.26]
[1725943573051,3.3813,133.08,133.05,9.26]
[1725943573854,3.3815,133.07,133.05,9.26]
[1725943574343,3.3813,133.08,133.05,9.26]
[1725943574543,158.09655318,133.13,133.0,1.2817]
[1725943574544,22.58,133.1,133.0,1.2817]
[1725943574744,22.58,133.1,133.05,9.26]
[1725943575142,3.3814,133.08,133.05,9.26]
[1725943575536,3.3814,133.08,133.06,9.26]
[1725943576141,3.3811,133.09,133.06,9.26]
[1725943577751,3.3811,133.09,133.06,12.6417]
[1725943578248,3.3811,133.09,133.07,9.26]
[1725943580755,3.3808,133.1,133.07,9.26]
[1725943581649,22.58,133.2,133.08,12.641]
[1725943581952,22.58,133.15,133.1,9.26]
[1725943582151,3.3803,133.12,133.1,9.26]
[1725943582356,22.58,133.15,133.1,9.26]
[1725943582850,31.84,133.15,133.06,4.0407]
[1725943583042,22.58,133.12,133.06,4.0407]
[1725943583245,3.3809,133.1,133.07,9.26]
[1725943583456,22.58,133.12,133.08,9.26]
[1725943584858,3.3806,133.11,133.08,9.26]
[1725943585156,22.58,133.13,133.08,9.26]
[1725943586160,3.3808,133.1,133.08,9.26]
[1725943587157,3.3806,133.11,133.08,9.26]
[1725943587656,22.58,133.13,133.08,9.26]
[1725943588652,3.3809,133.1,133.08,9.26]
[1725943589951,3.381,133.09,133.08,9.26]
[1725943590353,22.58,133.13,133.08,9.26]
[1725943590556,3.3807,133.1,133.08,9.26]
[1725943591858,3.381,133.09,133.08,9.26]
[1725943593252,3.381,133.09,133.06,2.739]
[1725943593456,22.58,133.11,133.06,2.739]
[1725943594353,3.3814,133.08,133.06,1.3262]
[1725943594555,22.58,133.11,133.05,9.26]
[1725943595961,3.3817,133.07,133.05,9.26]
[1725943596163,22.58,133.09,133.05,9.26]
[1725943596462,22.58,133.09,133.04,9.26]
[1725943597559,3.3819,133.06,133.04,9.26]
[1725943598561,22.58,133.09,133.05,9.26]
[1725943598766,3.3816,133.07,133.05,9.26]
[1725943599467,3.3813,133.08,133.05,9.26]
[1725943599666,3.3813,133.08,133.06,9.26]
[1725943602163,3.3813,133.08,133.05,9.26]
[1725943602366,3.3815,133.07,133.05,9.26]
[1725943602962,3.3817,133.06,133.05,9.26]
[1725943603970,3.382,133.05,133.04,9.26]
[1725943604159,22.58,133.08,133.0,2.6489]
[1725943604160,31.84,133.08,133.0,2.6489]
[1725943604359,31.84,133.08,133.02,9.26]
[1725943604564,31.84,133.08,133.02,12.6426]
[1725943604565,3.382,133.05,133.02,12.6426]
[1725943604765,31.84,133.08,133.0,2.6489]
[1725943604966,31.84,133.08,133.02,9.26]
[1725943605265,22.58,133.05,133.0,2.6489]
[1725943605473,22.58,133.05,133.0,11.9089]
[1725943605867,3.3824,133.04,133.03,9.26]
[1725943606074,22.58,133.05,133.03,9.26]
[1725943606272,9.26,133.1,133.04,12.6422]
[1725943606273,22.58,133.1,133.04,12.6422]
[1725943606476,1.14316157,133.09,133.06,9.26]
[1725943606679,22.58,133.1,133.06,9.26]
[1725943607174,3.3815,133.07,133.06,9.26]
[1725943609267,3.3815,133.07,133.05,9.26]
[1725943609671,3.3813,133.08,133.05,9.26]
[1725943609877,22.58,133.09,133.03,9.26]
[1725943610177,3.3819,133.06,133.03,9.26]
[1725943610570,22.58,133.07,133.03,9.26]
[1725943610880,3.3821,133.05,133.03,9.26]
[1725943611671,3.3822,133.04,133.02,9.26]
[1725943612076,3.3826,133.03,133.01,9.26]
[1725943613370,3.3823,133.04,133.01,9.26]
[1725943613571,3.3823,133.04,133.01,12.643]
[1725943613974,3.3823,133.04,133.01,9.26]
[1725943614871,3.3823,133.04,133.02,9.26]
[1725943618173,3.3821,133.05,133.02,12.6427]
[1725943620485,3.3822,133.04,133.02,12.6427]
[1725943620789,22.58,133.06,133.02,12.6427]
[1725943620981,3.382,133.05,133.02,12.6427]
[1725943621182,3.382,133.05,133.03,3.3824]
[1725943621485,3.382,133.05,133.02,9.26]
[1725943621686,3.382,133.05,133.02,12.6426]
[1725943623083,3.382,133.05,133.0,2.6489]
[1725943623084,3.3818,133.06,133.04,9.26]
[1725943624191,3.3818,133.06,133.04,12.6422]